bitfinex/quotes_ETHUSD_20251201
["timestamp","ask_amount","ask_price","bid_price","bid_amount"]
[1764610136660,0.002,2749.9,2749.1,7.2751082]
[1764610136870,0.002,2749.9,2749.1,10.9126623]
[1764610137101,0.002,2749.9,2749.2,1.14936623]
[1764610138165,0.583,2749.9,2749.2,1.14936623]
[1764610138859,0.583,2749.9,2749.3,7.27457898]
[1764610139289,0.002,2749.9,2749.3,7.27457898]
[1764610139500,0.002,2749.9,2749.3,10.91186847]
[1764610139671,0.002,2749.9,2749.4,1.20612347]
[1764610140907,0.002,2749.9,2749.5,7.27404982]
[1764610143313,0.24865227,2750.0,2749.8,7.8121086]
[1764610143495,0.24865227,2750.0,2749.6,0.986504]
[1764610143496,0.36392,2752.0,2750.2,1.13109811]
[1764610143824,0.80292,2751.9,2750.3,1.47532067]
[1764610144023,0.0997041,2751.4,2750.3,1.67386233]
[1764610144194,0.0997041,2751.4,2750.3,1.09286233]
[1764610144387,0.581,2751.8,2750.3,1.09286233]
[1764610144388,0.36392,2751.3,2750.3,1.09286233]
[1764610144599,0.581,2751.2,2750.3,1.09286233]
[1764610145192,0.36392,2752.0,2750.5,10.90710777]
[1764610145426,0.36392,2752.5,2750.7,0.405504]
[1764610145627,0.581,2752.4,2750.6,1.85685529]
[1764610145922,0.36392,2752.1,2750.6,1.85685529]
[1764610146315,0.581,2752.4,2750.5,4.21670259]
[1764610146622,0.0997041,2751.4,2750.3,8.36472941]
[1764610146926,0.72559411,2752.3,2750.3,8.36472941]
[1764610147093,0.0997041,2751.9,2750.3,8.36472941]
[1764610147296,0.72559411,2751.5,2750.3,1.09286233]
[1764610147495,0.94492,2751.4,2750.4,3.63577959]
[1764610147729,0.94492,2751.4,2750.4,7.27161437]
[1764610147913,0.581,2751.3,2750.4,7.27161437]
[1764610148222,7.26638568,2752.4,2750.5,0.581]
[1764610148434,0.36392,2751.7,2750.5,0.581]
[1764610148633,0.94492,2751.6,2750.5,0.581]
[1764610148822,0.581,2751.5,2750.4,3.63577959]
[1764610149225,7.26902666,2751.4,2750.4,3.63577959]
[1764610150037,7.26902666,2751.4,2750.3,4.72876747]
[1764610150219,1.87404368,2751.3,2750.3,1.09286233]
[1764610150418,0.0997041,2751.0,2750.1,3.63716258]
[1764610150635,0.581,2750.9,2750.1,0.001]
[1764610150836,0.0997041,2750.8,2750.1,0.001]
[1764610151139,0.581,2750.7,2750.1,0.001]
[1764610151442,3.63561615,2750.6,2750.1,0.001]
[1764610151641,0.405504,2751.2,2750.1,0.001]
[1764610151642,0.57016725,2752.0,2750.1,0.001]
[1764610151851,3.63465835,2751.3,2750.2,0.405504]
[1764610152208,3.63438124,2751.5,2750.1,0.582]
[1764610152439,0.72559411,2751.4,2750.1,0.582]
[1764610153122,0.002,2751.7,2750.2,0.405504]
[1764610153320,0.002,2751.7,2750.4,11.61209786]
[1764610153521,0.002,2751.7,2750.6,1.13109811]
[1764610153833,0.002,2751.7,2750.9,10.48099975]
[1764610154011,0.002,2751.7,2750.9,11.06199975]
[1764610154812,0.002,2751.7,2751.0,1.13109811]
[1764610155547,0.002,2751.7,2751.2,0.405504]
[1764610155747,0.002,2751.7,2751.3,1.7120233]
[1764610157032,0.002,2751.7,2751.4,10.48099975]
[1764610157563,0.002,2751.7,2751.6,0.405504]
[1764610158434,0.002,2751.7,2751.3,5.34666874]
[1764610158766,0.002,2751.7,2751.3,7.85029088]
[1764610159142,0.002,2751.7,2751.3,4.21564544]
[1764610160147,0.002,2751.7,2751.3,7.85029088]
[1764610160771,0.002,2751.7,2751.3,0.581]
[1764610161072,0.002,2751.7,2751.2,3.63472355]
[1764610161866,0.002,2751.7,2751.2,7.2695011]
[1764610162075,0.002,2751.7,2751.2,8.12711062]
[1764610164766,0.002,2751.7,2751.3,1.09239275]
[1764610165270,0.002,2751.7,2751.2,4.49233307]
[1764610165566,0.002,2751.7,2751.2,8.12711062]
[1764610166141,0.002,2751.7,2751.3,1.13109811]
[1764610166358,0.002,2751.7,2751.4,1.28929863]
[1764610167969,0.002,2751.7,2751.3,0.581]
[1764610168769,0.002,2751.7,2751.3,7.85027938]
[1764610170361,0.002,2751.7,2751.3,4.21563394]
[1764610170577,0.002,2751.7,2751.3,0.581]
[1764610170872,0.002,2751.7,2751.3,4.21555739]
[1764610171090,0.002,2751.7,2751.3,7.85020283]
[1764610171288,0.002,2751.7,2751.3,0.581]
[1764610171463,0.002,2751.7,2751.3,4.21564111]
[1764610172271,0.002,2751.7,2751.3,7.85028655]
[1764610172690,0.002,2751.7,2751.3,4.21564111]
[1764610172989,0.002,2751.7,2751.3,7.85028655]
[1764610173492,0.002,2751.7,2751.3,4.21564111]
[1764610173787,0.002,2751.7,2751.3,7.85028655]
[1764610174691,0.002,2751.7,2751.4,0.78502866]
[1764610176471,0.002,2751.7,2751.5,7.26876248]
[1764610177371,0.002,2751.7,2751.5,3.63438124]
[1764610177573,0.002,2751.7,2751.0,3.63493956]
[1764610177774,0.002,2751.7,2751.0,0.58]
[1764610178403,0.002,2751.7,2751.1,3.63490967]
[1764610178601,0.002,2751.7,2751.0,4.21498243]
[1764610179099,0.002,2751.7,2751.0,7.85002423]
[1764610179500,0.002,2751.7,2751.0,4.21498243]
[1764610180514,0.002,2751.7,2750.1,0.001]
[1764610180515,0.405504,2751.6,2750.1,0.001]
[1764610180722,0.36392,2751.2,2750.1,0.001]
[1764610180874,0.405504,2751.6,2750.1,0.42283636]
[1764610181071,0.405504,2751.4,2750.1,0.001]
[1764610181474,0.769424,2751.6,2750.1,0.001]
[1764610181674,0.405504,2751.4,2750.1,0.001]
[1764610182488,0.72559411,2751.2,2750.1,0.001]
[1764610182810,1.3794885,2751.1,2750.2,0.72737273]
[1764610183106,0.7994885,2751.1,2750.2,0.72737273]
[1764610183806,0.7994885,2751.1,2750.1,0.001]
[1764610184691,10.9051254,2751.0,2750.1,0.001]
[1764610184885,0.72559411,2750.9,2750.1,0.001]
[1764610185113,0.36392,2750.8,2750.1,0.001]
[1764610185712,0.58,2750.7,2750.1,0.001]
[1764610186699,7.27140518,2750.5,2750.1,0.001]
[1764610186917,1.31811093,2750.4,2750.1,0.001]
[1764610188909,3.63596698,2750.3,2750.1,0.001]
[1764610189235,7.27193396,2750.3,2750.1,0.001]
[1764610189430,3.63596698,2750.3,2750.1,0.001]
[1764610189637,7.27193396,2750.3,2750.1,0.001]
[1764610189942,0.85900449,2750.2,2750.1,0.001]
[1764610191106,5.22069779,2750.2,2750.1,0.001]
[1764610192933,5.72590589,2750.2,2750.1,0.001]
[1764610193244,6.20720179,2750.2,2750.1,0.001]
[1764610193967,6.57112179,2750.2,2750.1,0.001]
[1764610194174,5.99012179,2750.2,2750.1,0.001]
[1764610194357,6.57112179,2750.2,2750.1,0.001]
[1764610197737,13.02012179,2750.2,2750.1,0.001]
[1764610200571,12.43912179,2750.2,2750.1,0.001]
[1764610200928,3.63599681,2750.3,2750.1,0.001]
[1764610201128,7.85299362,2750.3,2750.1,0.001]
[1764610201351,0.36392,2750.2,2750.1,0.001]
[1764610201957,4.21699681,2750.3,2750.1,0.001]
[1764610202164,0.405504,2750.2,2750.1,0.001]
[1764610202465,4.90384495,2750.2,2750.1,0.001]
[1764610202649,5.62943906,2750.2,2750.1,0.001]
[1764610202853,5.99335906,2750.2,2750.1,0.001]
[1764610203158,6.57435906,2750.2,2750.1,0.001]
[1764610203755,5.99335906,2750.2,2750.1,0.001]
[1764610204055,6.57435906,2750.2,2750.1,0.001]
[1764610204262,16.67703906,2750.2,2750.1,0.001]
[1764610204484,5.62943906,2750.2,2750.1,0.001]
[1764610204631,5.99335906,2750.2,2750.1,0.001]
[1764610204830,6.57435906,2750.2,2750.1,0.001]
[1764610205278,5.99335906,2750.2,2750.1,0.001]
[1764610205437,6.57435906,2750.2,2750.1,0.001]
[1764610205839,23.68635806,2750.2,2750.1,0.001]
[1764610206182,16.86535906,2750.2,2750.1,0.001]
[1764610206984,19.05863506,2750.2,2750.1,0.001]
[1764610208043,12.44235906,2750.2,2750.1,0.001]
[1764610208240,16.86535906,2750.2,2750.1,0.001]
[1764610208597,12.44235906,2750.2,2750.1,0.001]
[1764610208740,13.02335906,2750.2,2750.1,0.001]
[1764610209138,12.07843906,2750.2,2750.1,0.001]
[1764610209358,11.04704505,2750.2,2750.1,0.001]
[1764610209975,12.03354905,2750.2,2750.1,0.001]
[1764610210138,12.75914316,2750.2,2750.1,0.001]
[1764610211271,18.27439816,2750.2,2750.1,0.001]
[1764610211587,16.87804916,2750.2,2750.1,0.001]
[1764610211770,17.44849772,2750.2,2750.1,0.001]
[1764610212424,28.91144572,2750.2,2750.1,0.001]
[1764610212691,10.72259172,2750.2,2750.1,0.001]
[1764610213270,14.06945272,2750.2,2750.1,0.001]
[1764610213682,13.54926272,2750.2,2750.1,0.001]
[1764610214290,13.88736272,2750.2,2750.1,0.001]
[1764610215085,8.93780672,2750.2,2750.1,0.001]
[1764610215398,6.88059172,2750.2,2750.1,0.001]
[1764610216263,10.39909272,2750.2,2750.1,0.001]
[1764610216463,10.78642572,2750.2,2750.1,0.001]
[1764610216685,6.88059172,2750.2,2750.1,0.001]
[1764610216887,5.89408772,2750.2,2750.1,0.001]
[1764610217087,5.17904505,2750.2,2750.1,0.001]
[1764610217469,6.31014316,2750.2,2750.1,0.001]
[1764610218257,8.81035016,2750.2,2750.1,0.001]
[1764610219198,6.31014316,2750.2,2750.1,0.001]
[1764610222059,5.72914316,2750.2,2750.1,0.001]
[1764610222269,6.31014316,2750.2,2750.1,0.001]
[1764610224082,6.31214316,2750.2,2750.1,0.001]
[1764610226591,14.12721816,2750.2,2750.1,0.001]
[1764610226763,17.96921816,2750.2,2750.1,0.001]
[1764610226966,15.70589116,2750.2,2750.1,0.001]
[1764610227196,11.67872916,2750.2,2750.1,0.001]
[1764610227371,12.25972916,2750.2,2750.1,0.001]
[1764610227868,18.77903416,2750.2,2750.1,0.001]
[1764610228491,25.54024853,2750.2,2750.1,0.001]
[1764610228699,22.56277153,2750.2,2750.1,0.001]
[1764610228899,26.99606753,2750.2,2750.1,0.001]
[1764610229097,26.14229053,2750.2,2750.1,0.001]
[1764610230100,18.13090011,2750.1,2750.0,0.001]
[1764610230398,31.21066447,2750.1,2750.0,0.001]
[1764610230577,34.01752887,2750.1,2750.0,0.001]
[1764610230973,32.70483787,2750.1,2750.0,0.001]
[1764610231975,38.35798287,2750.1,2750.0,0.001]
[1764610232180,34.69552387,2750.1,2750.0,0.001]
[1764610232574,34.33248587,2750.1,2750.0,0.001]
[1764610233109,34.33248587,2750.1,2747.6,0.581]
[1764610233110,0.36392,2749.0,2747.6,0.581]
[1764610233281,0.94492,2748.9,2747.7,7.278815]
[1764610233476,0.581,2748.8,2747.7,7.278815]
[1764610234603,3.63808345,2748.7,2747.7,7.278815]
[1764610235108,7.2761669,2748.7,2747.7,7.278815]
[1764610235414,4.2189548,2748.8,2747.7,7.278815]
[1764610235598,4.2189548,2748.8,2747.8,1.14993381]
[1764610235775,7.8569096,2748.8,2747.8,1.14993381]
[1764610236572,7.8569096,2748.8,2747.7,7.278815]
[1764610236969,7.2759096,2748.8,2747.7,7.278815]
[1764610237171,0.581,2748.7,2747.7,7.278815]
[1764610237599,7.2759096,2748.8,2747.7,7.278815]
[1764610237807,7.8569096,2748.8,2747.7,7.278815]
[1764610238075,7.8569096,2748.8,2747.8,0.7859815]
[1764610239189,7.8569096,2748.8,2747.9,3.63914261]
[1764610239507,0.36392,2748.6,2747.9,3.63914261]
[1764610239680,7.8569096,2748.8,2747.9,7.27828522]
[1764610239875,7.8569096,2748.8,2747.9,3.63914261]
[1764610240184,7.8569096,2748.8,2747.9,4.00305687]
[1764610240392,0.405504,2749.5,2747.9,7.64219948]
[1764610240707,0.581,2749.4,2747.9,4.00305687]
[1764610241009,0.36392,2748.8,2748.0,0.40030569]
[1764610241185,3.63808345,2748.7,2748.0,4.03928462]
[1764610243314,7.6400869,2748.7,2748.0,4.03928462]
[1764610243804,3.63808345,2748.7,2748.0,4.03928462]
[1764610244591,0.405504,2748.6,2747.6,0.582]
[1764610244790,0.405504,2748.6,2747.6,0.001]
[1764610244791,1.13109811,2748.6,2747.6,0.001]
[1764610245007,0.36392,2748.0,2747.6,0.001]
[1764610245210,0.581,2747.9,2747.6,0.001]
[1764610245380,4.22019951,2747.9,2747.6,0.001]
[1764610245986,7.85939902,2747.9,2747.6,0.001]
[1764610246716,0.0997041,2747.8,2747.6,0.001]
[1764610247023,1.94371682,2747.8,2747.6,0.001]
[1764610247224,0.581,2747.7,2747.6,0.001]
[1764610247398,0.8220994,2748.7,2747.6,0.001]
[1764610247399,1.65055313,2748.5,2747.6,0.001]
[1764610247719,0.36392,2748.0,2747.6,0.001]
[1764610247914,0.581,2747.9,2747.6,0.001]
[1764610248119,0.36392,2748.0,2747.6,0.001]
[1764610248319,0.581,2747.8,2747.6,0.001]
[1764610249889,1.13109811,2748.0,2747.6,0.001]
[1764610250092,1.42188537,2747.9,2747.6,0.001]
[1764610250908,3.63874613,2748.2,2747.6,0.001]
[1764610251107,4.21974613,2748.2,2747.6,0.001]
[1764610251339,1.08951411,2748.1,2747.6,0.001]
[1764610251625,0.581,2748.0,2747.6,0.001]
[1764610251805,0.72559411,2748.1,2747.6,0.001]
[1764610252005,3.63914261,2747.9,2747.6,0.001]
[1764610253232,7.27828522,2747.9,2747.6,0.001]
[1764610254738,3.63914261,2747.9,2747.6,0.001]
[1764610254894,7.27828522,2747.9,2747.6,0.001]
[1764610255095,8.13677315,2747.9,2747.6,0.001]
[1764610256025,8.71777315,2747.9,2747.6,0.001]
[1764610257794,8.71966746,2747.8,2747.6,0.001]
[1764610257998,0.769424,2747.7,2747.6,0.001]
[1764610258830,5.13442561,2747.7,2747.6,0.001]
[1764610258995,6.91460295,2747.7,2747.6,0.001]
[1764610260403,19.71045395,2747.7,2747.6,0.001]
[1764610260607,28.09703295,2747.7,2747.6,0.001]
[1764610260831,13.04659695,2747.7,2747.6,0.001]
[1764610261206,14.5031723,2747.7,2747.6,0.001]
[1764610261619,7.33109116,2747.7,2747.6,0.001]
[1764610261931,15.0841723,2747.7,2747.6,0.001]
[1764610262330,30.4558393,2747.7,2747.6,0.001]
[1764610262532,15.32821875,2747.7,2747.6,0.001]
[1764610263233,7.49560295,2747.7,2747.6,0.001]
[1764610267030,6.91460295,2747.7,2747.6,0.001]
[1764610267333,5.71542561,2747.7,2747.6,0.001]
[1764610268938,9.55242561,2747.7,2747.6,0.001]
[1764610270238,8.97142561,2747.7,2747.6,0.001]
[1764610270437,9.55242561,2747.7,2747.6,0.001]
[1764610272304,19.21820361,2747.7,2747.6,0.001]
[1764610272719,40.16670451,2747.7,2747.6,0.001]
[1764610272940,36.44846251,2747.7,2747.6,0.001]
[1764610273161,33.45793351,2747.7,2747.6,0.001]
[1764610273321,31.79489051,2747.7,2747.6,0.001]
[1764610273523,26.11830951,2747.7,2747.6,0.001]
[1764610273745,31.17970151,2747.7,2747.6,0.001]
[1764610274748,33.29030651,2747.7,2747.6,0.001]
[1764610274952,31.95939351,2747.7,2747.6,0.001]
[1764610275652,34.08532451,2747.7,2747.6,0.001]
[1764610275850,33.56173451,2747.7,2747.6,0.001]
[1764610276189,33.56173451,2747.7,2747.5,0.001]
[1764610276190,31.11287651,2747.7,2747.3,0.001]
[1764610276362,33.5250326,2747.2,2747.1,0.001]
[1764610276530,34.1060326,2747.2,2747.1,0.001]
[1764610276740,37.6068956,2747.2,2747.1,0.001]
[1764610276942,42.34186997,2747.2,2747.1,0.001]
[1764610277839,0.36392,2746.0,2745.1,0.001]
[1764610278151,0.581,2745.9,2745.1,0.001]
[1764610278338,0.405504,2745.7,2745.1,0.001]
[1764610278539,0.36392,2745.8,2745.1,0.001]
[1764610278748,0.581,2745.6,2745.1,0.001]
[1764610279157,3.6423238,2745.5,2745.1,0.001]
[1764610280430,4.04722198,2746.0,2745.1,0.001]
[1764610280431,3.64179321,2745.9,2745.1,0.001]
[1764610280829,0.581,2745.9,2745.1,0.001]
[1764610281026,3.64167651,2746.0,2745.1,0.001]
[1764610281221,4.22282364,2745.9,2745.1,0.001]
[1764610281431,3.64182364,2745.9,2745.1,0.001]
[1764610281651,4.22282364,2745.9,2745.1,0.001]
[1764610282677,7.86464728,2745.9,2745.1,0.001]
[1764610282831,8.43403201,2745.9,2745.1,0.001]
[1764610283029,0.581,2745.8,2745.1,0.001]
[1764610283223,3.64205849,2745.7,2745.1,0.001]
[1764610283555,0.581,2745.6,2745.1,0.001]
[1764610285228,3.6423238,2745.5,2745.1,0.001]
[1764610285731,4.22325511,2745.6,2745.1,0.001]
[1764610286951,7.86551022,2745.6,2745.1,0.001]
[1764610287659,8.65206124,2745.6,2745.1,0.001]
[1764610287857,0.78655102,2745.6,2745.1,0.001]
[1764610288051,0.581,2745.5,2745.1,0.001]
[1764610289358,7.68909042,2745.9,2745.1,0.001]
[1764610289559,0.581,2745.9,2745.1,0.001]
[1764610290756,0.36392,2746.3,2745.1,0.001]
[1764610291062,0.36392,2746.8,2745.2,10.51144749]
[1764610291231,3.64033491,2747.0,2745.4,1.05224475]
[1764610291232,3.74003901,2747.0,2745.4,1.05224475]
[1764610291432,1.30659411,2746.9,2745.4,1.05224475]
[1764610291660,0.0997041,2746.4,2745.4,0.001]
[1764610291871,0.6807041,2746.4,2745.4,0.001]
[1764610292834,3.64126278,2746.3,2745.4,0.001]
[1764610293132,1.350424,2746.2,2745.4,0.001]
[1764610293334,0.581,2746.1,2745.4,0.001]
[1764610293531,0.581,2746.3,2745.4,0.001]
[1764610295139,3.63967242,2747.5,2745.4,0.001]
[1764610295451,0.0997041,2747.0,2745.4,0.001]
[1764610295852,0.581,2746.9,2745.4,0.001]
[1764610297737,3.64086506,2746.6,2745.5,0.72559411]
[1764610297938,4.22186506,2746.6,2745.6,0.80115071]
[1764610298134,0.581,2746.6,2745.6,0.80115071]
[1764610298533,1.30659411,2746.6,2745.6,0.80115071]
[1764610298867,0.36392,2746.3,2745.4,0.001]
[1764610299370,0.405504,2746.5,2745.4,0.001]
[1764610299371,0.0997041,2746.0,2745.4,0.001]
[1764610299743,0.405504,2745.9,2745.4,0.001]
[1764610299938,0.986504,2745.9,2745.4,0.001]
[1764610300337,0.6807041,2746.0,2745.4,0.001]
[1764610301049,0.82529821,2746.1,2745.4,0.001]
[1764610301248,4.22255107,2746.1,2745.4,0.001]
[1764610301489,3.64133862,2746.3,2745.4,0.001]
[1764610301635,0.0997041,2746.8,2745.4,0.001]
[1764610301979,0.581,2746.7,2745.4,0.001]
[1764610302179,0.36392,2746.6,2745.4,0.001]
[1764610303290,7.28199526,2746.5,2745.4,0.001]
[1764610304164,4.22199763,2746.5,2745.4,0.001]
[1764610304378,7.86299526,2746.5,2745.4,0.001]
[1764610304578,0.36392,2746.3,2745.4,0.001]
[1764610304755,0.78629953,2746.4,2745.4,0.001]
[1764610304756,0.581,2746.4,2745.4,0.001]
[1764610305156,3.64126278,2746.3,2745.4,7.28591294]
[1764610305366,3.64099763,2746.5,2745.4,7.28591294]
[1764610305576,3.64119469,2746.4,2745.4,7.28591294]
[1764610305780,7.38209348,2746.4,2745.5,1.16540245]
[1764610307091,3.64119469,2746.4,2745.5,1.16540245]
[1764610307268,8.00732423,2746.6,2745.6,3.64219114]
[1764610307467,8.37124423,2746.6,2745.6,7.28438228]
[1764610307788,9.67889854,2746.6,2745.7,0.84497847]
[1764610309254,0.405504,2746.5,2745.4,3.64339309]
[1764610309482,12.9558436,2746.6,2745.4,0.001]
[1764610309483,7.28252556,2746.3,2745.4,0.001]
[1764610309683,1.30659411,2746.2,2745.4,0.001]
[1764610309884,0.0997041,2746.0,2745.4,0.001]
[1764610311212,0.581,2746.0,2745.4,0.001]
[1764610311361,0.36392,2745.9,2745.4,0.001]
[1764610311862,3.64183761,2745.9,2745.4,0.001]
[1764610312062,4.22283761,2745.9,2745.4,0.001]
[1764610312289,4.68151337,2745.9,2745.4,0.001]
[1764610312792,8.32335098,2745.9,2745.4,0.001]
[1764610313182,8.32335098,2745.9,2745.0,7.86406546]
[1764610313387,8.32335098,2745.9,2745.0,4.22107822]
[1764610313585,8.32335098,2745.9,2745.0,7.86406546]
[1764610313779,0.8687271,2745.8,2745.0,7.86406546]
[1764610314697,3.64205849,2745.7,2745.0,7.86406546]
[1764610314996,7.28411698,2745.7,2745.0,0.5781]
[1764610315293,7.28411698,2745.7,2744.9,4.36864433]
[1764610315496,0.85167641,2745.6,2744.9,4.36864433]
[1764610315702,0.85167641,2745.6,2744.8,3.64418609]
[1764610315903,0.581,2745.5,2744.8,0.001]
[1764610316069,0.36392,2745.4,2744.8,0.001]
[1764610316268,0.405504,2745.3,2744.8,0.001]
[1764610316572,0.581,2745.2,2744.8,0.001]
[1764610316774,7.38541318,2745.1,2744.8,0.001]
[1764610316978,1.16056132,2745.0,2744.8,0.001]
[1764610317603,7.28570908,2745.1,2744.8,0.001]
[1764610317780,7.86670908,2745.1,2744.8,0.001]
[1764610318706,3.64258915,2745.3,2744.8,0.001]
[1764610319308,7.2851783,2745.3,2744.8,0.001]
[1764610319507,8.14435554,2745.3,2744.8,0.001]
[1764610319804,7.86600226,2745.4,2744.8,0.001]
[1764610321372,7.28500226,2745.4,2744.8,0.001]
[1764610321600,7.86600226,2745.4,2744.8,0.001]
[1764610322117,0.36392,2745.3,2744.8,0.001]
[1764610322275,1.18724234,2745.2,2744.8,0.001]
[1764610322473,7.28500226,2745.4,2744.8,0.001]
[1764610324991,3.64221517,2745.6,2744.8,0.001]
[1764610325198,0.72559411,2745.8,2744.8,0.14701124]
[1764610325199,0.581,2745.8,2744.8,0.14701124]
[1764610326120,0.6807041,2745.8,2744.8,0.001]
[1764610327112,7.28411698,2745.7,2744.8,0.001]
[1764610327294,0.79648211,2745.6,2744.8,0.001]
[1764610327800,1.37748211,2745.6,2744.8,0.001]
[1764610328999,3.6423238,2745.5,2744.8,0.001]
[1764610329189,7.2846476,2745.5,2744.8,0.001]
[1764610329392,7.6485676,2745.5,2744.8,0.001]
[1764610329590,5.27305799,2745.5,2744.8,0.001]
[1764610329801,3.6423238,2745.5,2744.8,0.001]
[1764610330011,7.2846476,2745.5,2744.8,0.001]
[1764610332013,0.72559411,2745.4,2744.8,0.001]
[1764610332915,0.405504,2745.3,2744.8,0.001]
[1764610333117,0.94492,2745.2,2744.8,0.001]
[1764610333286,0.82529821,2745.0,2744.8,0.001]
[1764610333482,0.81110073,2744.9,2744.8,0.001]
[1764610333685,4.22385454,2745.1,2744.8,0.001]
[1764610334388,7.86670908,2745.1,2744.8,0.001]
[1764610335007,0.36392,2744.9,2744.8,0.001]
[1764610335403,4.00703996,2744.9,2744.8,0.001]
[1764610335711,4.62962396,2744.9,2744.8,0.001]
[1764610335917,5.45688685,2744.9,2744.8,0.001]
[1764610336733,5.65629506,2744.9,2744.8,0.001]
[1764610339438,6.38188917,2744.9,2744.8,0.001]
[1764610341523,6.18248096,2744.9,2744.8,0.001]
[1764610342018,6.28218506,2744.9,2744.8,0.001]
[1764610342219,2.133857,2744.9,2744.8,0.001]
[1764610342433,4.94971407,2744.9,2744.8,0.001]
[1764610342743,4.73263407,2744.9,2744.8,0.001]
[1764610343045,4.36871407,2744.9,2744.8,0.001]
[1764610343211,4.46841817,2744.9,2744.8,0.001]
[1764610344632,5.04941817,2744.9,2744.8,0.001]
[1764610344941,5.33765977,2744.9,2744.8,0.001]
[1764610345349,5.91865977,2744.9,2744.8,0.001]
[1764610345816,5.23795567,2744.9,2744.8,0.001]
[1764610346230,5.81895567,2744.9,2744.8,0.001]
[1764610347877,4.94971407,2744.9,2744.8,0.001]
[1764610348761,4.31363407,2744.9,2744.8,0.001]
[1764610351311,5.44473218,2744.9,2744.8,0.001]
[1764610352654,9.28173218,2744.9,2744.8,0.001]
[1764610352866,30.46416218,2744.9,2744.8,0.001]
[1764610353030,34.02118489,2744.9,2744.8,0.001]
[1764610354333,1.13109811,2744.8,2744.5,0.001]
[1764610354525,36.90258572,2744.6,2744.5,0.001]
[1764610354757,19.61535511,2744.4,2744.3,0.001]
[1764610354937,20.19635511,2744.4,2744.3,0.001]
[1764610355141,21.17599875,2744.4,2744.3,0.001]
[1764610355548,21.32215137,2744.4,2744.3,0.001]
[1764610355743,7.03881437,2744.4,2744.3,0.001]
[1764610355967,4.44191221,2744.1,2744.0,0.001]
[1764610356178,31.50565299,2744.1,2744.0,0.001]
[1764610356343,34.91656899,2744.1,2744.0,0.001]
[1764610356544,34.64899799,2744.1,2744.0,0.001]
[1764610357052,37.84851099,2744.1,2744.0,0.001]
[1764610357570,35.98288299,2744.1,2744.0,0.001]
[1764610358060,25.38602597,2744.0,2742.5,0.001]
[1764610358260,25.38602597,2744.0,2743.5,1e-08]
[1764610358261,25.788854,2743.6,2743.5,1e-08]
[1764610358460,5.33201811,2743.4,2742.5,0.001]
[1764610358664,5.01809811,2743.3,2742.5,0.001]
[1764610358975,18.25330111,2742.6,2742.5,0.001]
[1764610359140,29.22243872,2742.6,2742.5,0.001]
[1764610359741,29.22243872,2742.6,2742.2,0.001]
[1764610359742,0.405504,2742.3,2742.2,0.001]
[1764610359944,6.20153511,2742.3,2742.2,0.001]
[1764610360241,9.84810915,2742.3,2742.2,0.001]
[1764610360442,9.26710915,2742.3,2742.2,0.001]
[1764610360655,9.84810915,2742.3,2742.2,0.001]
[1764610360856,11.30052967,2742.3,2742.2,0.001]
[1764610361078,17.58067867,2742.3,2742.2,0.001]
[1764610361461,17.34222867,2742.3,2742.2,0.001]
[1764610361974,11.22166567,2742.3,2742.2,0.001]
[1764610362174,7.17501267,2742.3,2742.2,0.001]
[1764610362382,10.42710167,2742.3,2742.2,0.001]
[1764610362681,4.32727814,2742.3,2742.2,0.001]
[1764610362879,5.05287225,2742.3,2742.2,0.001]
[1764610363375,5.31708815,2742.3,2742.2,0.001]
[1764610363573,4.73608815,2742.3,2742.2,0.001]
[1764610363787,5.31708815,2742.3,2742.2,0.001]
[1764610364076,6.61894625,2742.3,2742.2,0.001]
[1764610364948,6.03794625,2742.3,2742.2,0.001]
[1764610365142,6.61894625,2742.3,2742.2,0.001]
[1764610366370,5.14159215,2742.3,2742.2,0.001]
[1764610366578,5.72259215,2742.3,2742.2,0.001]
[1764610367278,5.14159215,2742.3,2742.2,0.001]
[1764610367488,5.72259215,2742.3,2742.2,0.001]
[1764610368376,5.35867215,2742.3,2742.2,0.001]
[1764610368550,5.45837625,2742.3,2742.2,0.001]
[1764610368948,6.36885916,2742.3,2742.2,0.001]
[1764610369955,4.87737625,2742.3,2742.2,0.001]
[1764610370173,5.35867215,2742.3,2742.2,0.001]
[1764610370370,1.09659343,2743.3,2742.2,0.001]
[1764610370371,3.64478199,2743.7,2742.2,0.001]
[1764610370601,0.19940821,2742.9,2742.2,0.001]
[1764610371062,0.582,2742.8,2742.2,0.001]
[1764610371693,3.64478199,2743.7,2742.2,0.001]
[1764610371694,0.36392,2743.1,2742.2,0.001]
[1764610371984,0.582,2743.0,2742.2,0.001]
[1764610373293,0.72559411,2742.8,2742.2,0.001]
[1764610375899,7.29208444,2742.7,2742.2,0.001]
[1764610377867,0.72559411,2742.8,2742.2,0.001]
[1764610379883,3.64604222,2742.7,2742.2,0.001]
[1764610380402,7.29208444,2742.7,2742.2,0.001]
[1764610380603,0.002,2742.7,2742.2,0.001]
[1764610381340,0.002,2742.7,2742.3,1.03901376]
[1764610381972,0.002,2742.7,2742.4,7.29288214]
[1764610382174,0.002,2742.7,2742.2,0.001]
[1764610382175,0.581,2742.6,2742.2,0.001]
[1764610382370,0.405504,2742.5,2742.2,0.001]
[1764610382615,0.36392,2742.3,2742.2,0.001]
[1764610382815,0.0997041,2742.3,2742.2,0.001]
[1764610383115,0.6807041,2742.3,2742.2,0.001]
[1764610383922,4.73278214,2742.3,2742.2,0.001]